fUST/lending_fUST_20250414
["ID","MTS","AMOUNT","RATE_DAILY","PERIOD"]
[357927671,1744577442663,-600.0,0.0002877,2]
[357927673,1744577442673,-501.22166499,0.00028773,5]
[357927675,1744577442682,-500.0,0.00028773,5]
[357927677,1744577442691,-500.52576407,0.00028773,5]
[357927679,1744577442701,-500.0,0.00028806,2]
[357927681,1744577442711,-216.811,0.00028855,2]
[357927683,1744577442720,-3392.40059056,0.0002889,2]
[357927685,1744577442730,-633.0,0.000289,2]
[357927687,1744577442739,-600.0,0.00028901,2]
[357927689,1744577442749,-600.0,0.00028958,2]
[357927691,1744577442758,-7976.31532891,0.0002897,2]
[357927693,1744577442767,-500.0,0.00028973,5]
[357927695,1744577442777,-500.0,0.00028973,5]
[357927697,1744577442786,-500.0,0.00028973,5]
[357927699,1744577442795,-512.21781974,0.00028973,5]
[357927701,1744577442804,-500.0,0.00028973,5]
[357927703,1744577442814,-500.0,0.00028973,5]
[357927705,1744577442823,-500.0,0.00028973,5]
[357927707,1744577442833,-500.0,0.00028973,5]
[357927709,1744577442842,-500.0,0.00028973,5]
[357927711,1744577442852,-500.0,0.00028973,5]
[357927713,1744577442861,-500.0,0.00028973,5]
[357927715,1744577442871,-500.0,0.00028973,5]
[357927717,1744577442880,-500.0,0.00028973,5]
[357927719,1744577442890,-500.0,0.00028973,5]
[357927721,1744577442900,-500.0,0.00028973,5]
[357927723,1744577442909,-500.0,0.00028973,5]
[357927725,1744577442919,-500.0,0.00028973,5]
[357927727,1744577442929,-500.0,0.00028973,5]
[357927729,1744577442938,-500.0,0.00028973,5]
[357927731,1744577442948,-500.0,0.00028973,5]
[357927734,1744577442957,-602.1820014,0.00028973,5]
[357927737,1744577442967,-500.0,0.00028973,5]
[357927739,1744577442977,-500.0,0.00028973,5]
[357927741,1744577442988,-500.0,0.00028973,5]
[357927743,1744577442997,-500.0,0.00028973,5]
[357927745,1744577443007,-277.099189,0.00028973,7]
[357927747,1744577443016,-500.0,0.00028976,5]
[357927749,1744577443027,-500.0,0.00028976,5]
[357927752,1744577443037,-500.0,0.00028976,5]
[357927754,1744577443046,-500.0,0.00028976,5]
[357927756,1744577443056,-300.0,0.00028976,5]
[357927758,1744577443067,-500.0,0.00028976,5]
[357927759,1744577443076,-500.0,0.00028976,5]
[357927762,1744577443087,-500.0,0.00028976,5]
[357927764,1744577443096,-500.0,0.00028976,5]
[357927766,1744577443106,-500.0,0.00028976,5]
[357927767,1744577443116,-505.27464665,0.00028976,5]
[357927769,1744577443126,-500.0,0.00028976,5]
[357927772,1744577443137,-500.0,0.00028976,5]
[357927774,1744577443147,-500.0,0.00028976,5]
[357927777,1744577443157,-403.42645973,0.00028976,5]
[357927780,1744577443167,-357.58,0.00028976,5]
[357927783,1744577443177,-500.0,0.00028976,5]
[357927785,1744577443186,-512.28105919,0.00028976,5]
[357927787,1744577443196,-500.0,0.00028976,5]
[357927789,1744577443205,-500.0,0.00028976,5]
[357927791,1744577443216,-183.62427088,0.00028979,2]
[357927793,1744577443225,-160.0,0.0002898,3]
[357927795,1744577443235,-34802.28964567,0.0002898,4]
[357927797,1744577443244,-2423.89,0.0002898,2]
[357927799,1744577443254,-7976.31532891,0.0002898,2]
[357927801,1744577443263,-1675.77409527,0.00028989,2]
[357927824,1744577446633,-187.34318581,0.00028988,2]
[357927825,1744577446644,-2649.25681419,0.00028989,2]
[357927826,1744577446743,-3651.28441945,0.00028989,2]
[357927827,1744577446753,-306.84070319,0.0002899,2]
[357927831,1744578507380,-241.02723306,0.00019575,6]
[357927832,1744578507404,-23.3151308,0.00019973,2]
[357927842,1744578632553,-269.263337,0.00019743,2]
[357927843,1744578632570,-176.81528983,0.00019773,6]
[357927845,1744578632611,-87.52707403,0.00019773,6]
[357927846,1744578632625,-288.02260127,0.00019873,2]
[357927847,1744578632635,-136.1272262,0.00019973,2]
[357927848,1744578632646,-300.0,0.00019978,2]
[357927849,1744578632655,-300.0,0.00019978,2]
[357927850,1744578632666,-14217.21985465,0.00019979,2]
[357927851,1744578632682,-9798.089831,0.00019979,2]
[357927852,1744578632699,-884.69031435,0.00019979,2]
[357927853,1744578632709,-288.02260125,0.0002012,2]
[357927854,1744578632719,-288.02260125,0.00020367,2]
[357927855,1744578632729,-288.02260125,0.00020613,2]
[357927856,1744578632740,-288.02260125,0.0002086,2]
[357927857,1744578632749,-333.7907527,0.0002096,2]
[357927858,1744578632759,-500.0,0.0002096,2]
[357927859,1744578632769,-500.0,0.0002096,2]
[357927860,1744578632780,-500.0,0.0002096,2]
[357927861,1744578632790,-500.0,0.0002096,2]
[357927862,1744578632800,-500.0,0.0002096,2]
[357927863,1744578632810,-500.0,0.0002096,2]
[357927864,1744578632820,-500.0,0.0002096,2]
[357927865,1744578632830,-500.0,0.0002096,2]
[357927866,1744578632839,-500.0,0.0002096,2]
[357927867,1744578632849,-500.0,0.0002096,2]
[357927868,1744578632859,-500.0,0.0002096,2]
[357927869,1744578632872,-500.0,0.0002096,2]
[357927870,1744578632882,-500.0,0.0002096,2]
[357927871,1744578632895,-500.0,0.0002096,2]
[357927872,1744578632904,-500.0,0.0002096,2]
[357927873,1744578632916,-500.0,0.0002096,2]
[357927874,1744578632927,-500.0,0.0002096,2]
[357927875,1744578632936,-500.0,0.0002096,2]
[357927876,1744578632946,-500.0,0.0002096,2]
[357927877,1744578632956,-391.17318141,0.0002096,2]
[357927878,1744578632966,-500.0,0.0002096,2]
[357927879,1744578632977,-500.0,0.0002096,2]
[357927880,1744578632987,-500.0,0.0002096,2]
[357927881,1744578632997,-500.0,0.0002096,2]
[357927882,1744578633007,-500.0,0.0002096,2]
[357927883,1744578633017,-500.0,0.0002096,2]
[357927884,1744578633027,-500.0,0.0002096,2]
[357927885,1744578633037,-500.0,0.0002096,2]
[357927886,1744578633047,-14740.57083133,0.0002096,2]
[357927887,1744578633058,-500.0,0.00021,2]
[357927888,1744578633068,-500.0,0.00021,2]
[357927889,1744578633079,-500.0,0.00021,2]
[357927890,1744578633089,-500.0,0.00021,2]
[357927891,1744578633098,-297.5538439,0.00021014,2]
[357927892,1744578633108,-500.0,0.00021017,2]
[357927893,1744578633122,-500.0,0.00021017,2]
[357927894,1744578633132,-160.0,0.00021395,2]
[357927895,1744578633143,-838.34317751,0.00021395,2]
[357927896,1744578633153,-12536.72526453,0.00021395,2]
[357927897,1744578633163,-420.0,0.00021859,2]
[357927898,1744578633173,-222.91894758,0.000219,2]
[357927899,1744578633183,-222.91894758,0.000219,2]
[357927900,1744578633192,-207.14769891,0.000219,3]
[357927901,1744578633203,-207.14769865,0.000219,3]
[357927902,1744578633213,-207.14769865,0.0002221,3]
[357927903,1744578633227,-500.0,0.00022466,2]
[357927904,1744578633238,-207.14769865,0.00022866,4]
[357927905,1744578633248,-160.0,0.00023,2]
[357927906,1744578633259,-207.14769865,0.00023521,4]
[357927907,1744578633269,-370.6725777,0.00023854,2]
[357927908,1744578633279,-587.0,0.00023917,2]
[357927909,1744578633289,-207.14769865,0.00024176,5]
[357927910,1744578633299,-207.14769865,0.00024831,5]
[357927911,1744578633309,-504.21091868,0.00025386,2]
[357927912,1744578633320,-207.14769865,0.00025486,6]
[357927913,1744578633330,-207.14769865,0.00026141,6]
[357927914,1744578633340,-823.0,0.00026169,2]
[357927915,1744578633353,-504.21091865,0.0002624,2]
[357927916,1744578633364,-1000.0,0.00026479,2]
[357927917,1744578633376,-1000.0,0.00026479,2]
[357927918,1744578633386,-1000.0,0.00026479,2]
[357927919,1744578633396,-150.94302587,0.00026479,2]
[357927920,1744578633406,-1000.0,0.00026496,2]
[357927921,1744578633417,-207.14769865,0.00026797,6]
[357927922,1744578633427,-350.50358603,0.00026889,2]
[357927923,1744578633437,-312.44791667,0.00027,3]
[357927924,1744578633447,-312.44791667,0.00027,3]
[357927925,1744578633457,-500.0,0.00027015,2]
[357927926,1744578633467,-504.21091865,0.00027093,2]
[357927927,1744578633476,-500.0,0.00027397,2]
[357927928,1744578633487,-500.0,0.00027397,2]
[357927929,1744578633497,-500.0,0.00027397,2]
[357927930,1744578633507,-500.0,0.00027397,2]
[357927931,1744578633518,-500.0,0.00027397,5]
[357927932,1744578633527,-207.14769865,0.00027452,7]
[357927933,1744578633537,-500.0,0.0002749,5]
[357927934,1744578633547,-160.0,0.00027551,2]
[357927935,1744578633557,-500.0,0.00027659,5]
[357927936,1744578633567,-504.21091865,0.00027947,2]
[357927937,1744578633577,-500.0,0.00027988,2]
[357927938,1744578633587,-500.0,0.00027988,2]
[357927939,1744578633596,-350.0789804,0.00027988,2]
[357927940,1744578633606,-500.0,0.00027988,2]
[357927941,1744578633618,-401.0,0.00027999,2]
[357927942,1744578633628,-207.14769865,0.00028107,7]
[357927943,1744578633639,-1310.7590338,0.0002812,4]
[357927944,1744578633649,-500.0,0.00028138,2]
[357927945,1744578633660,-500.0,0.0002819,2]
[357927946,1744578633670,-500.0,0.00028214,2]
[357927947,1744578633682,-500.0,0.00028236,2]
[357927948,1744578633692,-600.0,0.00028402,2]
[357927949,1744578633702,-628.94,0.000285,2]
[357927950,1744578633719,-500.0,0.00028542,2]
[357927951,1744578633733,-1152.0,0.00028632,2]
[357927952,1744578633745,-600.0,0.00028721,2]
[357927953,1744578633759,-600.0,0.00028744,2]
[357927954,1744578633773,-207.14769865,0.00028762,8]
[357927955,1744578633786,-600.0,0.000288,2]
[357927956,1744578633798,-2261.6003937,0.000288,2]
[357927957,1744578633813,-504.21091865,0.000288,2]
[357927958,1744578633827,-500.0,0.0002881,2]
[357927959,1744578633839,-500.0,0.00028826,2]
[357927960,1744578633851,-500.0,0.00028828,2]
[357927961,1744578633862,-5169.26292863,0.00028854,2]
[357927962,1744578633880,-500.0,0.00028856,2]
[357927963,1744578633891,-3062.4771865,0.00028864,2]
[357927964,1744578633905,-500.0,0.00028873,5]
[357927965,1744578633919,-500.0,0.00028873,5]
[357927966,1744578633932,-500.0,0.00028873,5]
[357927967,1744578633944,-500.0,0.00028873,5]
[357927968,1744578633956,-511.10612957,0.00028873,5]
[357927969,1744578633968,-500.0,0.00028873,5]
[357927970,1744578633980,-500.0,0.00028873,5]
[357927971,1744578633993,-500.0,0.00028873,5]
[357927972,1744578634006,-499.58237958,0.00028873,5]
[357927973,1744578634019,-500.0,0.00028873,5]
[357927974,1744578634032,-500.0,0.00028873,5]
[357927975,1744578634044,-500.0,0.00028873,5]
[357927976,1744578634056,-513.00232676,0.00028873,5]
[357927977,1744578634068,-500.0,0.00028873,5]
[357927978,1744578634079,-500.0,0.00028873,5]
[357927979,1744578634091,-500.0,0.00028873,5]
[357927980,1744578634104,-500.0,0.00028873,5]
[357927981,1744578634116,-500.0,0.00028873,5]
[357927982,1744578634129,-500.0,0.00028873,5]
[357927983,1744578634142,-500.0,0.00028873,5]
[357927984,1744578634155,-500.0,0.00028873,5]
[357927985,1744578634168,-5169.26292863,0.0002888,2]
[357927986,1744578634179,-3564.29865667,0.00028889,2]
[357927996,1744578638709,-919.93959773,0.00028889,2]
[357927997,1744578638724,-685.02467423,0.00028889,2]
[357927998,1744578638736,-573.95235948,0.0002889,2]
[357927999,1744578638830,-5630.30815373,0.0002889,2]
[357928000,1744578638844,-12444.60338012,0.0002889,2]
[357928021,1744578640972,-1127.38511352,0.0002086,2]
[357928022,1744578640984,-14542.08908501,0.0002889,2]
[357928023,1744578641036,-2993.88752206,0.0002889,2]
[357928024,1744578641047,-8940.30089015,0.00028899,2]
[357928025,1744578641060,-41661.82791923,0.00028899,3]
[357928026,1744578641072,-160.0,0.00028899,3]
[357928027,1744578641084,-160.0,0.00028899,3]
[357928028,1744578641095,-111081.01520248,0.000289,2]
[357928083,1744578643843,-539.43999999,0.000289,2]
[357928084,1744578643901,-511.62726809,0.000289,2]
[357928107,1744578646737,-543.0,0.0002358,2]
[357928108,1744578646796,-584.38511349,0.0002358,2]
[357928109,1744578646808,-233.66905735,0.000268,2]
[357928110,1744578646820,-24218.78674218,0.000289,2]
[357928114,1744579674793,-343.37140581,0.00018,2]
[357928115,1744579684577,-153.59516,0.00017999,2]
[357928119,1744579712473,-146.40484,0.00017999,2]
[357928120,1744579712496,-44.6471189,0.00017999,2]
[357928121,1744579719393,-225.89986162,0.00017,2]
[357928125,1744579730808,-226.458603,0.00017,2]
[357928130,1744579805947,-154.0,0.00016999,2]
[357928131,1744579805970,-52.91090473,0.00017,2]
[357928132,1744579814815,-164.46494169,0.00016999,2]
[357928133,1744579819803,-135.53505831,0.00016999,2]
[357928134,1744579819826,-90.92354469,0.00017,2]
[357928140,1744579831691,-732.9768744,0.00017,2]
[357928141,1744579831705,-317.83,0.00017,2]
[357928142,1744579831720,-1167.26008219,0.00017,2]
[357928144,1744579831733,-7862.56359496,0.00017,2]
[357928146,1744579831748,-5903.05404244,0.00017,2]
[357928148,1744579831759,-455.3528811,0.00017999,2]
[357928149,1744579831770,-345.63259372,0.00017999,2]
[357928150,1744579831780,-500.0,0.00017999,2]
[357928151,1744579831790,-500.0,0.00017999,2]
[357928153,1744579831799,-525.18361025,0.00017999,2]
[357928155,1744579831809,-500.0,0.00017999,2]
[357928158,1744579831819,-500.0,0.00017999,2]
[357928160,1744579831830,-500.0,0.00017999,2]
[357928162,1744579831839,-500.0,0.00017999,2]
[357928165,1744579831848,-227.70870582,0.00017999,2]
[357928168,1744579831858,-98904.93673121,0.00018,2]
[357928173,1744579831873,-273.44970584,0.00018,2]
[357928177,1744579831884,-5392.0186476,0.00018,2]
[357928180,1744579831896,-2490.20984751,0.00018,2]
[357928185,1744579831908,-36873.24661038,0.00018,2]
[357928188,1744579831918,-500.0,0.00018,2]
[357928191,1744579831927,-500.0,0.00018,2]
[357928194,1744579831936,-500.0,0.00018,2]
[357928197,1744579831946,-500.0,0.00018,2]
[357928200,1744579831955,-420.0,0.00018659,2]
[357928203,1744579831965,-231.07932544,0.000189,2]
[357928206,1744579831974,-152.0,0.00019407,2]
[357928209,1744579831984,-587.0,0.00020481,2]
[357928212,1744579831993,-207.14769865,0.000218,3]
[357928215,1744579832003,-207.14769865,0.000218,3]
[357928218,1744579832012,-207.14769865,0.000218,3]
[357928221,1744579832022,-160.0,0.0002198,2]
[357928224,1744579832031,-207.14769865,0.00022025,3]
[357928226,1744579832041,-823.0,0.00022481,2]
[357928228,1744579832051,-160.0,0.00023,2]
[357928230,1744579832061,-207.14769865,0.000234,4]
[357928232,1744579832070,-413.24981476,0.00023479,2]
[357928252,1744579832260,-1000.0,0.00023479,2]
[357928254,1744579832271,-535.27139459,0.00023479,2]
[357928256,1744579832280,-1000.0,0.00023479,2]
[357928258,1744579832290,-231.07932544,0.000239,2]
[357928261,1744579832301,-2000.0,0.00024102,4]
[357928262,1744579832311,-1152.0,0.00024676,2]
[357928264,1744579832320,-207.14769865,0.00024775,5]
[357928267,1744579832332,-2584.63146432,0.000249,2]
[357928269,1744579832341,-2000.0,0.00025692,4]
[357928271,1744579832351,-2584.63146432,0.00025954,2]
[357928273,1744579832360,-24531.55056501,0.00025964,2]
[357928313,1744579838018,-368.44943499,0.00025964,2]
[357928315,1744579838028,-282.280001,0.00026017,2]
[357928317,1744579838038,-419.89681905,0.00026051,2]
[357928319,1744579838048,-160.0,0.00026064,2]
[357928321,1744579838057,-197.2134218,0.00026092,2]
[357928323,1744579838067,-151.0,0.00026095,2]
[357928325,1744579838077,-600.0,0.00026113,2]
[357928327,1744579838087,-500.0,0.00026136,2]
[357928329,1744579838096,-500.0,0.0002614,2]
[357928332,1744579838108,-600.0,0.00026149,2]
[357928334,1744579838117,-207.14769865,0.0002615,6]
[357928336,1744579838127,-600.0,0.00026189,2]
[357928337,1744579838136,-600.0,0.00026234,2]
[357928339,1744579838146,-500.0,0.00026316,2]
[357928341,1744579838156,-600.0,0.00026321,2]
[357928344,1744579838165,-500.0,0.00026486,2]
[357928346,1744579838175,-500.0,0.00026489,2]
[357928348,1744579838185,-600.0,0.00026502,2]
[357928350,1744579838195,-500.0,0.00026529,2]
[357928352,1744579838204,-500.0,0.00026585,2]
[357928354,1744579838215,-500.0,0.00026625,2]
[357928355,1744579838225,-289.48044592,0.00026648,2]
[357928356,1744579838234,-600.0,0.00026746,2]
[357928357,1744579838245,-307.72699595,0.00026928,2]
[357928358,1744579838257,-600.0,0.00026933,2]
[357928359,1744579838267,-600.0,0.00026952,2]
[357928360,1744579838277,-499.66231791,0.00027009,2]
[357928361,1744579838290,-100.33768209,0.00027009,2]
[357928362,1744579838300,-169.79773342,0.00027086,2]
[357928372,1744579839980,-158.0,0.00027,2]
[357928373,1744579839990,-507.81705216,0.00027086,2]
[357928374,1744579840119,-0.0047731,0.00027086,2]
[357928375,1744579840133,-935.38044132,0.00027086,2]
[357928376,1744579840143,-500.0,0.0002715,2]
[357928377,1744579840153,-500.0,0.0002717,2]
[357928378,1744579840163,-500.0,0.00027214,2]
[357928379,1744579840172,-500.0,0.0002722,2]
[357928380,1744579840182,-500.0,0.0002726,2]
[357928381,1744579840192,-2000.0,0.00027282,4]
[357928383,1744579840203,-500.0,0.00027378,2]
[357928384,1744579840212,-600.0,0.00027383,2]
[357928385,1744579840222,-500.0,0.00027475,2]
[357928386,1744579840232,-500.0,0.00027487,2]
[357928387,1744579840241,-207.14769865,0.00027525,7]
[357928388,1744579840253,-500.0,0.00027576,2]
[357928389,1744579840266,-500.0,0.00027618,2]
[357928390,1744579840276,-500.0,0.00027667,2]
[357928391,1744579840286,-500.0,0.00027667,2]
[357928392,1744579840297,-500.0,0.00027753,2]
[357928393,1744579840307,-2584.63146432,0.00027795,2]
[357928394,1744579840317,-600.0,0.00027805,2]
[357928395,1744579840327,-500.0,0.0002783,2]
[357928396,1744579840339,-500.0,0.00027894,2]
[357928397,1744579840349,-500.0,0.00027938,2]
[357928398,1744579840358,-600.0,0.00027947,2]
[357928399,1744579840367,-26445.04827275,0.0002799,2]
[357928412,1744579842822,-548.31,0.0002799,2]
[357928428,1744579845992,-7861.82239594,0.0002799,2]
[357928429,1744579846005,-3311.35281889,0.0002799,2]
[357928430,1744579846014,-312.44791667,0.00028,10]
[357928431,1744579846023,-500.0,0.00028008,2]
[357928432,1744579846033,-600.0,0.0002807,2]
[357928433,1744579846042,-425.5536528,0.00028078,30]
[357928434,1744579846052,-500.0,0.00028092,2]
[357928435,1744579846062,-1081.7919204,0.0002812,4]
[357928436,1744579846072,-150.98954348,0.00028137,2]
[357928437,1744579857206,-166.952271,0.00017999,2]
[357928438,1744579875632,-333.047729,0.00017999,2]
[357928439,1744579875661,-153.47811073,0.00017999,2]
[357928440,1744579882534,-166.7946333,0.00017999,2]
[357928441,1744579926401,-200.0,0.00017998,2]
[357928448,1744580565170,-300.0,0.00017998,7]
[357928449,1744580746311,-1654.9716,0.00017998,7]
[357928450,1744580776607,-2625.9288,0.00017998,7]
[357928452,1744580798019,-776.0029,0.00017998,7]
[357928453,1744581001789,-166.794634,0.00017998,7]
[357928465,1744581032032,-2.61029911,0.00017998,7]
[357928467,1744581032043,-241.02723306,0.00018711,2]
[357928469,1744581032052,-1797.18246333,0.000189,2]
[357928471,1744581032062,-160.0,0.00021917,2]
[357928473,1744581032072,-204.0,0.00022,2]
[357928475,1744581032082,-170.0,0.000229,4]
[357928477,1744581032091,-160.0,0.00023287,2]
[357928479,1744581032101,-2930.1698538,0.00023623,2]
[357928482,1744581032111,-1797.18246333,0.000239,2]
[357928484,1744581032121,-160.0,0.00024657,2]
[357928486,1744581032130,-207.14769865,0.000249,5]
[357928488,1744581032140,-488.3964333,0.00025,2]
[357928490,1744581032150,-31.80354465,0.00025145,2]
[357928493,1744581032170,-268.19645535,0.00025145,2]
[357928495,1744581032180,-500.0,0.00025146,2]
[357928497,1744581032190,-500.0,0.00025146,2]
[357928499,1744581032200,-500.0,0.00025146,2]
[357928501,1744581032209,-500.0,0.00025146,2]
[357928503,1744581032219,-260.10923127,0.00025146,2]
[357928505,1744581032229,-166.7946333,0.00025146,2]
[357928507,1744581032239,-23654.69659681,0.00025147,2]
[357928858,1744581038156,-1245.30340319,0.00025147,2]
[357928859,1744581038167,-238.73509123,0.00025272,2]
[357928860,1744581038179,-877.1354569,0.00025272,2]
[357928861,1744581038192,-264.207945,0.00025372,2]
[357928862,1744581038204,-838.34317751,0.00025697,2]
[357928863,1744581038213,-2364.00522187,0.00025697,2]
[357928864,1744581038226,-449.49792658,0.00025697,2]
[357928865,1744581038238,-2131.41615486,0.00025697,2]
[357928866,1744581038247,-518.98098824,0.0002579,2]
[357928867,1744581038260,-231.01901176,0.0002579,2]
[357928868,1744581038270,-4559.5013088,0.00025893,2]
[357928869,1744581038280,-160.0,0.00026027,2]
[357928870,1744581038290,-160.0,0.00026063,2]
[357928871,1744581038299,-500.0,0.00026156,2]
[357928872,1744581038309,-500.0,0.00026211,2]
[357928873,1744581038319,-500.0,0.00026213,2]
[357928874,1744581038328,-500.0,0.0002626,2]
[357928876,1744581038338,-500.0,0.00026271,2]
[357928877,1744581038348,-500.0,0.00026383,2]
[357928878,1744581038358,-207.14769865,0.00026567,6]
[357928879,1744581038368,-500.0,0.00026668,2]
[357928880,1744581038378,-500.0,0.00026678,2]
[357928881,1744581038388,-500.0,0.00026692,2]
[357928882,1744581038398,-500.0,0.0002675,2]
[357928883,1744581038409,-500.0,0.00026868,2]
[357928884,1744581038419,-500.0,0.00026885,2]
[357928885,1744581038429,-500.0,0.00026893,2]
[357928886,1744581038441,-500.0,0.00026943,2]
[357928887,1744581038451,-500.0,0.00026992,2]
[357928888,1744581038461,-312.44791667,0.00027,3]
[357928889,1744581038472,-500.0,0.00027109,2]
[357928890,1744581038482,-500.0,0.00027121,2]
[357928891,1744581038492,-420.0,0.0002736,2]
[357928892,1744581038502,-1115.87054813,0.00027362,2]
[357928893,1744581038511,-160.0,0.00027397,2]
[357928894,1744581038520,-500.0,0.00027397,2]
[357928895,1744581038529,-557.02,0.00027397,2]
[357928896,1744581038538,-500.0,0.00027397,2]
[357928897,1744581038549,-500.0,0.00027397,5]
[357928898,1744581038558,-500.0,0.00027484,2]
[357928899,1744581038568,-500.0,0.0002755,2]
[357928900,1744581038578,-500.0,0.00027561,2]
[357928901,1744581038588,-500.0,0.00027577,2]
[357928902,1744581038598,-500.0,0.00027808,2]
[357928903,1744581038608,-414.21578179,0.00027878,2]
[357928929,1744581041687,-0.00096596,0.00027,2]
[357928943,1744581043193,-158.99903404,0.00027,2]
[357928944,1744581043204,-85.78421821,0.00027878,2]
[357928945,1744581043213,-500.0,0.00027932,2]
[357928946,1744581043223,-500.0,0.00027942,2]
[357928947,1744581043233,-665.55841263,0.00027981,2]
[357928948,1744581043243,-10.78487698,0.00027988,2]
[357928959,1744581045974,-489.21512302,0.00027988,2]
[357928960,1744581045984,-500.0,0.00027989,2]
[357928961,1744581045994,-500.0,0.00027989,2]
[357928962,1744581046004,-288.36031013,0.00027989,2]
[357928963,1744581046044,-211.63968987,0.00027989,2]
[357928964,1744581046055,-218.92120085,0.00027989,2]
[357928965,1744581046066,-401.43910928,0.0002799,2]
[357928966,1744581046109,-26043.60916347,0.0002799,2]
[357928967,1744581046123,-500.0,0.00028081,2]
[357928968,1744581046133,-500.0,0.00028095,2]
[357928969,1744581046144,-885.3859241,0.0002812,4]
[357928970,1744581046154,-665.55841263,0.00028123,2]
[357928971,1744581046164,-207.14769865,0.00028233,7]
[357928972,1744581046174,-500.0,0.00028239,5]
[357928973,1744581046184,-500.0,0.00028239,5]
[357928974,1744581046194,-62.84717417,0.00028239,2]
[357929035,1744582232209,-250.0,0.00021438,2]
[357929036,1744582232219,-500.0,0.00021538,2]
[357929037,1744582232228,-160.0,0.00025436,2]
[357929038,1744582232237,-419.89681905,0.00025447,2]
[357929039,1744582232246,-160.0,0.00025466,2]
[357929040,1744582232255,-151.0,0.00025491,2]
[357929041,1744582232264,-300.0,0.00025502,2]
[357929042,1744582232273,-300.0,0.00025502,2]
[357929043,1744582232282,-443.565515,0.00025502,2]
[357929044,1744582232292,-196.4098005,0.00025502,2]
[357929045,1744582232301,-489.03549556,0.00025502,2]
[357929046,1744582232310,-500.0,0.00025502,2]
[357929047,1744582232320,-16654.31556812,0.00025503,2]
[357929048,1744582232329,-24900.0,0.00025506,2]
[357929049,1744582232338,-242.881722,0.00025567,2]
[357929050,1744582232347,-599.06082111,0.0002589,2]
[357929051,1744582232356,-500.0,0.00026166,2]
[357929052,1744582232365,-12536.72526453,0.00026241,2]
[357929054,1744582232375,-500.0,0.00026311,2]
[357929056,1744582232383,-207.14769865,0.000269,7]
[357929058,1744582232392,-500.0,0.00027047,2]
[357929060,1744582232402,-500.0,0.00027231,2]
[357929062,1744582232412,-500.0,0.00027239,2]
[357929064,1744582232421,-500.0,0.00027262,2]
[357929066,1744582232430,-500.0,0.00027397,2]
[357929068,1744582232439,-500.0,0.00027397,2]
[357929071,1744582232449,-822.75,0.00027397,2]
[357929074,1744582232458,-514.5394733,0.00027397,2]
[357929077,1744582232470,-506.17408506,0.00027397,2]
[357929080,1744582232480,-500.0,0.00027397,2]
[357929083,1744582232489,-500.0,0.00027397,2]
[357929085,1744582232499,-500.0,0.00027397,5]
[357929087,1744582232510,-500.0,0.00027474,2]
[357929089,1744582232519,-500.0,0.0002753,2]
[357929091,1744582232529,-500.0,0.00027546,2]
[357929092,1744582232539,-420.0,0.00027737,2]
[357929094,1744582232549,-500.0,0.00028105,2]
[357929096,1744582232558,-768.2011389,0.0002812,4]
[357929098,1744582232568,-878.42356164,0.00028183,2]
[357929100,1744582232578,-490.09301294,0.00028316,2]
[357929102,1744582232587,-490.09301293,0.0002833,2]
[357929105,1744582232597,-490.09301293,0.00028345,2]
[357929107,1744582232606,-490.09301293,0.00028359,2]
[357929109,1744582232615,-490.09301293,0.00028373,2]